fUST/lending_fUST_20250628
["ID","MTS","AMOUNT","RATE_DAILY","PERIOD"]
[368319756,1751117242463,-229.1752038,0.00018496,2]
[368319757,1751117242484,-300.0,0.00018519,2]
[368319758,1751117242507,-138.49645186,0.00018519,2]
[368319765,1751117313043,2692.32116047,0.00017,2]
[368319767,1751117321127,9094.07003722,0.00015,2]
[368319768,1751117322196,154.31218142,0.000168,2]
[368319772,1751117324150,200.65386974,0.00023,30]
[368319838,1751117437920,-381.83123769,0.0001852,2]
[368319844,1751117437979,-539.16876231,0.0001852,2]
[368319847,1751117437988,-144.96230201,0.0001852,2]
[368319850,1751117437999,-155.03769799,0.0001852,2]
[368319853,1751117438009,-313.52039116,0.0001852,2]
[368319856,1751117438021,-886.47960884,0.0001852,2]
[368319858,1751117438030,-941.04329116,0.00018521,2]
[368319860,1751117438041,-2261.48618494,0.00018521,2]
[368319867,1751117438091,-21697.4705239,0.00018521,2]
[368319869,1751117438100,-460.0,0.00019178,2]
[368319870,1751117438109,-460.57754723,0.00019178,2]
[368319873,1751117438119,-460.0,0.00019178,2]
[368319874,1751117438128,-227.91233316,0.00019178,2]
[368319875,1751117438138,-460.0,0.00019178,2]
[368319876,1751117438153,-460.0,0.00019178,2]
[368319878,1751117438163,-582.90417915,0.00019178,2]
[368319880,1751117438173,-460.0,0.00019178,2]
[368319882,1751117438183,-3828.59,0.00019178,2]
[368319884,1751117438192,-460.0,0.00019178,2]
[368319886,1751117438202,-1194.06,0.00019178,2]
[368319888,1751117438211,-460.0,0.00019178,2]
[368319889,1751117438221,-1412.01,0.00019178,2]
[368319892,1751117438231,-460.0,0.00019178,2]
[368319893,1751117438241,-460.0,0.00019178,2]
[368319895,1751117438251,-460.0,0.00019178,2]
[368319896,1751117438260,-460.0,0.00019178,2]
[368319897,1751117438271,-1872.7,0.00019178,2]
[368319898,1751117438281,-460.0,0.00019178,2]
[368319899,1751117438291,-460.0,0.00019178,2]
[368319900,1751117438300,-460.0,0.00019178,2]
[368319901,1751117438309,-460.0,0.00019178,2]
[368319902,1751117438319,-500.0,0.00019178,2]
[368319903,1751117438328,-460.0,0.00019178,2]
[368319905,1751117438337,-460.0,0.00019178,2]
[368319906,1751117438347,-460.0,0.00019178,2]
[368319907,1751117438357,-460.0,0.00019178,2]
[368319908,1751117438366,-460.0,0.00019178,2]
[368319910,1751117438375,-460.0,0.00019178,2]
[368319912,1751117438384,-1527.23,0.00019178,2]
[368319913,1751117438393,-460.0,0.00019178,2]
[368319914,1751117438403,-460.0,0.00019178,2]
[368319915,1751117438412,-460.0,0.00019178,2]
[368319916,1751117438423,-524.0076965,0.00019178,2]
[368319917,1751117438432,-460.0,0.00019178,2]
[368319918,1751117438442,-460.0,0.00019178,2]
[368319919,1751117438451,-460.0,0.00019178,2]
[368319920,1751117438460,-460.0,0.00019178,2]
[368319921,1751117438469,-460.0,0.00019178,2]
[368319922,1751117438479,-3583.76,0.00019178,2]
[368319923,1751117438488,-460.0,0.00019178,2]
[368319924,1751117438497,-460.0,0.00019178,2]
[368319925,1751117438507,-460.0,0.00019178,2]
[368319926,1751117438516,-460.0,0.00019178,2]
[368319928,1751117438526,-460.0,0.00019178,2]
[368319930,1751117438535,-1503.18,0.00019178,2]
[368319932,1751117438544,-460.0,0.00019178,2]
[368319934,1751117438554,-460.0,0.00019178,2]
[368319936,1751117438563,-460.0,0.00019178,2]
[368319938,1751117438572,-460.0,0.00019178,2]
[368319940,1751117438581,-460.0,0.00019178,2]
[368319942,1751117438591,-460.0,0.00019178,2]
[368319945,1751117438600,-671.41,0.00019178,2]
[368319947,1751117438610,-460.0,0.00019178,2]
[368319948,1751117438623,-460.0,0.00019178,2]
[368319950,1751117438632,-460.0,0.00019178,2]
[368319952,1751117438641,-460.0,0.00019178,2]
[368319954,1751117438650,-642.4,0.00019178,2]
[368319956,1751117438660,-463.42427296,0.00019178,2]
[368319958,1751117438671,-460.0,0.00019178,2]
[368319961,1751117438680,-460.0,0.00019178,2]
[368319962,1751117438691,-454.72463154,0.00019178,2]
[368319964,1751117438700,-460.0,0.00019178,2]
[368319966,1751117438709,-500.0,0.00019178,2]
[368319968,1751117438719,-460.0,0.00019178,2]
[368319970,1751117438727,-460.0,0.00019178,2]
[368319972,1751117438736,-460.0,0.00019178,2]
[368319974,1751117438746,-460.0,0.00019178,2]
[368319976,1751117438755,-460.0,0.00019178,2]
[368319978,1751117438764,-460.0,0.00019178,2]
[368319980,1751117438773,-460.0,0.00019178,2]
[368319982,1751117438783,-460.0,0.00019178,2]
[368319984,1751117438793,-460.0,0.00019178,2]
[368319986,1751117438803,-460.0,0.00019178,2]
[368319988,1751117438812,-460.0,0.00019178,2]
[368319990,1751117438822,-460.0,0.00019178,2]
[368319992,1751117438831,-460.0,0.00019178,2]
[368319994,1751117438840,-460.0,0.00019178,2]
[368319996,1751117438849,-460.0,0.00019178,2]
[368319998,1751117438858,-460.0,0.00019178,2]
[368320000,1751117438868,-460.0,0.00019178,2]
[368320002,1751117438877,-648.03,0.00019178,2]
[368320004,1751117438886,-460.0,0.00019178,2]
[368320005,1751117438895,-460.0,0.00019178,2]
[368320006,1751117438904,-460.0,0.00019178,2]
[368320007,1751117438914,-460.0,0.00019178,2]
[368320008,1751117438924,-460.0,0.00019178,2]
[368320009,1751117438934,-460.0,0.00019178,2]
[368320010,1751117438943,-460.0,0.00019178,2]
[368320011,1751117438953,-460.0,0.00019178,2]
[368320012,1751117438962,-1923.24,0.00019178,2]
[368320013,1751117438971,-460.0,0.00019178,2]
[368320014,1751117438981,-460.0,0.00019178,2]
[368320015,1751117438990,-468.67487944,0.00019178,2]
[368320016,1751117439000,-677.09,0.00019178,2]
[368320017,1751117439010,-460.0,0.00019178,2]
[368320018,1751117439019,-460.0,0.00019178,2]
[368320019,1751117439029,-460.0,0.00019178,2]
[368320020,1751117439038,-533.62,0.00019178,2]
[368320021,1751117439047,-597.03,0.00019178,2]
[368320022,1751117439057,-460.0,0.00019178,2]
[368320023,1751117439066,-460.0,0.00019178,2]
[368320024,1751117439077,-364.89427182,0.00019178,2]
[368320025,1751117439086,-460.0,0.00019178,2]
[368320026,1751117439095,-460.0,0.00019178,2]
[368320027,1751117439105,-460.0,0.00019178,2]
[368320028,1751117439114,-460.0,0.00019178,2]
[368320029,1751117439123,-460.0,0.00019178,2]
[368320030,1751117439132,-460.0,0.00019178,2]
[368320031,1751117439142,-2476.82,0.00019178,2]
[368320032,1751117439152,-460.0,0.00019178,2]
[368320033,1751117439162,-405.36917785,0.00019178,2]
[368320034,1751117439171,-460.0,0.00019178,2]
[368320035,1751117439180,-2392.2,0.00019178,2]
[368320036,1751117439189,-460.0,0.00019178,2]
[368320037,1751117439199,-868.82,0.00019178,2]
[368320038,1751117439208,-3068.15,0.00019178,2]
[368320039,1751117439217,-477.6,0.00019178,2]
[368320040,1751117439227,-460.0,0.00019178,2]
[368320041,1751117439236,-460.0,0.00019178,2]
[368320042,1751117439245,-460.0,0.00019178,2]
[368320043,1751117439254,-460.0,0.00019178,2]
[368320044,1751117439263,-511.39,0.00019178,2]
[368320045,1751117439273,-460.0,0.00019178,2]
[368320046,1751117439282,-500.0,0.00019178,2]
[368320047,1751117439291,-500.0,0.00019178,2]
[368320048,1751117439300,-188.19,0.00019178,2]
[368320049,1751117439309,-460.0,0.00019178,2]
[368320050,1751117439318,-460.0,0.00019178,2]
[368320051,1751117439328,-1580.86,0.00019178,2]
[368320052,1751117439337,-460.0,0.00019178,2]
[368320053,1751117439346,-460.0,0.00019178,2]
[368320054,1751117439355,-460.0,0.00019178,2]
[368320055,1751117439364,-507.7951719,0.00019178,2]
[368320056,1751117439374,-502.36,0.00019178,2]
[368320057,1751117439383,-460.0,0.00019178,2]
[368320058,1751117439392,-460.0,0.00019178,2]
[368320059,1751117439401,-1439.04,0.00019178,2]
[368320060,1751117439410,-535.49,0.00019178,2]
[368320061,1751117439419,-274.25047259,0.00019178,2]
[368320062,1751117439429,-460.0,0.00019178,2]
[368320063,1751117439438,-460.0,0.00019178,2]
[368320064,1751117439448,-460.0,0.00019178,2]
[368320065,1751117439457,-1512.09,0.00019178,2]
[368320066,1751117439467,-678.45,0.00019178,2]
[368320067,1751117439476,-460.0,0.00019178,2]
[368320068,1751117439486,-460.0,0.00019178,2]
[368320069,1751117439495,-460.0,0.00019178,2]
[368320070,1751117439505,-641.87,0.00019178,2]
[368320071,1751117439514,-588.6,0.00019178,2]
[368320072,1751117439524,-460.0,0.00019178,2]
[368320073,1751117439533,-460.0,0.00019178,2]
[368320074,1751117439543,-460.0,0.00019178,2]
[368320075,1751117439552,-460.0,0.00019178,2]
[368320076,1751117439562,-460.0,0.00019178,2]
[368320077,1751117439572,-460.0,0.00019178,2]
[368320078,1751117439581,-588.74,0.00019178,2]
[368320079,1751117439590,-460.0,0.00019178,2]
[368320080,1751117439600,-460.0,0.00019178,2]
[368320081,1751117439609,-600.71,0.00019178,2]
[368320082,1751117439619,-460.0,0.00019178,2]
[368320083,1751117439631,-430.0,0.00019178,2]
[368320084,1751117439641,-460.0,0.00019178,2]
[368320085,1751117439651,-460.0,0.00019178,2]
[368320086,1751117439660,-277.41587772,0.00019178,2]
[368320087,1751117439670,-460.0,0.00019178,2]
[368320088,1751117439679,-460.0,0.00019178,2]
[368320089,1751117439689,-1706.49,0.00019178,2]
[368320090,1751117439698,-460.0,0.00019178,2]
[368320091,1751117439707,-460.0,0.00019178,2]
[368320092,1751117439717,-2092.7,0.00019178,2]
[368320093,1751117439726,-619.58,0.00019178,2]
[368320094,1751117439735,-492.27,0.00019178,2]
[368320095,1751117439745,-460.0,0.00019178,2]
[368320096,1751117439754,-935.99,0.00019178,2]
[368320097,1751117439764,-460.0,0.00019178,2]
[368320098,1751117439773,-460.0,0.00019178,2]
[368320099,1751117439783,-460.0,0.00019178,2]
[368320100,1751117439792,-460.0,0.00019178,2]
[368320101,1751117439801,-190.044887,0.00019178,2]
[368320102,1751117439811,-606.97761061,0.00019205,5]
[368320103,1751117439820,-249.71614556,0.00019315,2]
[368320104,1751117439830,-223.76,0.00019442,3]
[368320105,1751117439840,-671.28,0.00019442,3]
[368320107,1751117439849,-462.90331676,0.00019451,2]
[368320109,1751117439859,-456.17522087,0.00019451,2]
[368320110,1751117439868,-472.29073933,0.00019451,2]
[368320112,1751117439878,-460.0,0.00019451,2]
[368320113,1751117439888,-460.0,0.00019451,2]
[368320114,1751117439899,-464.93328592,0.00019451,2]
[368320115,1751117439908,-966.72,0.00019451,2]
[368320116,1751117439918,-460.0,0.00019451,2]
[368320117,1751117439927,-460.0,0.00019451,2]
[368320118,1751117439938,-989.84,0.00019451,2]
[368320119,1751117439947,-843.49,0.00019451,2]
[368320120,1751117439957,-555.0,0.00019451,2]
[368320121,1751117439967,-460.0,0.00019452,2]
[368320122,1751117439976,-460.0,0.00019452,2]
[368320123,1751117439986,-3828.59,0.00019452,2]
[368320124,1751117439996,-1194.06,0.00019452,2]
[368320125,1751117440005,-460.0,0.00019452,2]
[368320126,1751117440015,-1412.01,0.00019452,2]
[368320127,1751117440024,-460.0,0.00019452,2]
[368320128,1751117440034,-460.0,0.00019452,2]
[368320129,1751117440043,-1872.7,0.00019452,2]
[368320130,1751117440052,-535.27,0.00019452,2]
[368320131,1751117440062,-460.0,0.00019452,2]
[368320132,1751117440071,-460.0,0.00019452,2]
[368320133,1751117440081,-460.0,0.00019452,2]
[368320134,1751117440090,-460.0,0.00019452,2]
[368320135,1751117440100,-460.0,0.00019452,2]
[368320136,1751117440110,-1527.23,0.00019452,2]
[368320137,1751117440119,-460.0,0.00019452,2]
[368320138,1751117440129,-460.0,0.00019452,2]
[368320139,1751117440138,-460.0,0.00019452,2]
[368320140,1751117440148,-3583.76,0.00019452,2]
[368320141,1751117440157,-460.0,0.00019452,2]
[368320142,1751117440166,-460.0,0.00019452,2]
[368320143,1751117440176,-460.0,0.00019452,2]
[368320144,1751117440185,-460.0,0.00019452,2]
[368320145,1751117440195,-1503.18,0.00019452,2]
[368320146,1751117440204,-460.0,0.00019452,2]
[368320147,1751117440214,-460.0,0.00019452,2]
[368320148,1751117440223,-671.41,0.00019452,2]
[368320149,1751117440232,-460.0,0.00019452,2]
[368320150,1751117440242,-460.0,0.00019452,2]
[368320151,1751117440251,-460.0,0.00019452,2]
[368320152,1751117440260,-460.0,0.00019452,2]
[368320153,1751117440270,-642.4,0.00019452,2]
[368320154,1751117440280,-500.0,0.00019452,2]
[368320155,1751117440290,-460.0,0.00019452,2]
[368320156,1751117440299,-460.0,0.00019452,2]
[368320157,1751117440308,-460.0,0.00019452,2]
[368320158,1751117440318,-460.0,0.00019452,2]
[368320159,1751117440328,-460.0,0.00019452,2]
[368320160,1751117440337,-460.0,0.00019452,2]
[368320161,1751117440347,-460.0,0.00019452,2]
[368320162,1751117440356,-460.0,0.00019452,2]
[368320163,1751117440366,-460.0,0.00019452,2]
[368320164,1751117440375,-460.0,0.00019452,2]
[368320165,1751117440384,-460.0,0.00019452,2]
[368320166,1751117440393,-460.0,0.00019452,2]
[368320167,1751117440402,-234.95442889,0.00019452,2]
[368320168,1751117440412,-648.03,0.00019452,2]
[368320169,1751117440421,-460.0,0.00019452,2]
[368320170,1751117440559,-460.0,0.00019452,2]
[368320171,1751117440571,-460.0,0.00019452,2]
[368320172,1751117440581,-460.0,0.00019452,2]
[368320173,1751117440590,-460.0,0.00019452,2]
[368320174,1751117440600,-601.19540756,0.00019452,2]
[368320175,1751117440610,-460.0,0.00019452,2]
[368320176,1751117440619,-1923.24,0.00019452,2]
[368320177,1751117440632,-460.0,0.00019452,2]
[368320178,1751117440643,-677.09,0.00019452,2]
[368320179,1751117440653,-460.0,0.00019452,2]
[368320180,1751117440663,-460.0,0.00019452,2]
[368320181,1751117440672,-533.62,0.00019452,2]
[368320182,1751117440681,-597.03,0.00019452,2]
[368320183,1751117440690,-460.0,0.00019452,2]
[368320184,1751117440701,-460.0,0.00019452,2]
[368320185,1751117440710,-460.0,0.00019452,2]
[368320186,1751117440719,-315.73598921,0.00019452,2]
[368320187,1751117440729,-460.0,0.00019452,2]
[368320188,1751117440738,-460.0,0.00019452,2]
[368320189,1751117440748,-460.0,0.00019452,2]
[368320190,1751117440758,-2476.82,0.00019452,2]
[368320191,1751117440767,-460.0,0.00019452,2]
[368320192,1751117440777,-460.0,0.00019452,2]
[368320193,1751117440786,-2392.2,0.00019452,2]
[368320194,1751117440795,-868.82,0.00019452,2]
[368320195,1751117440804,-3068.15,0.00019452,2]
[368320196,1751117440813,-477.6,0.00019452,2]
[368320197,1751117440822,-460.0,0.00019452,2]
[368320198,1751117440832,-460.0,0.00019452,2]
[368320199,1751117440841,-511.39,0.00019452,2]
[368320200,1751117440850,-460.0,0.00019452,2]
[368320201,1751117440860,-460.0,0.00019452,2]
[368320202,1751117440869,-460.0,0.00019452,2]
[368320203,1751117440878,-1580.86,0.00019452,2]
[368320204,1751117440888,-460.0,0.00019452,2]
[368320205,1751117440898,-460.0,0.00019452,2]
[368320206,1751117440907,-460.0,0.00019452,2]
[368320207,1751117440916,-502.36,0.00019452,2]
[368320208,1751117440925,-460.0,0.00019452,2]
[368320209,1751117440934,-460.0,0.00019452,2]
[368320210,1751117440944,-1439.04,0.00019452,2]
[368320211,1751117440953,-535.49,0.00019452,2]
[368320212,1751117440963,-460.0,0.00019452,2]
[368320213,1751117440972,-481.66,0.00019452,2]
[368320214,1751117440982,-460.0,0.00019452,2]
[368320215,1751117440991,-1512.09,0.00019452,2]
[368320216,1751117441001,-678.45,0.00019452,2]
[368320217,1751117441010,-460.0,0.00019452,2]
[368320218,1751117441020,-460.0,0.00019452,2]
[368320219,1751117441029,-460.0,0.00019452,2]
[368320220,1751117441039,-641.87,0.00019452,2]
[368320221,1751117441049,-588.6,0.00019452,2]
[368320222,1751117441058,-460.0,0.00019452,2]
[368320223,1751117441067,-460.0,0.00019452,2]
[368320224,1751117441077,-460.0,0.00019452,2]
[368320225,1751117441087,-460.0,0.00019452,2]
[368320226,1751117441096,-588.74,0.00019452,2]
[368320227,1751117441106,-460.0,0.00019452,2]
[368320228,1751117441115,-600.71,0.00019452,2]
[368320229,1751117441125,-460.0,0.00019452,2]
[368320230,1751117441134,-460.0,0.00019452,2]
[368320231,1751117441144,-460.0,0.00019452,2]
[368320232,1751117441154,-1706.49,0.00019452,2]
[368320233,1751117441168,-460.0,0.00019452,2]
[368320234,1751117441178,-460.0,0.00019452,2]
[368320235,1751117441188,-2092.7,0.00019452,2]
[368320236,1751117441198,-619.58,0.00019452,2]
[368320237,1751117441208,-492.27,0.00019452,2]
[368320238,1751117441218,-460.0,0.00019452,2]
[368320239,1751117441228,-460.0,0.00019452,2]
[368320240,1751117441238,-935.99,0.00019452,2]
[368320241,1751117441247,-485.13560277,0.00019452,2]
[368320242,1751117441256,-607.41497908,0.00019452,2]
[368320243,1751117441265,-800.0,0.000195,2]
[368320244,1751117441275,-500.0,0.00019563,2]
[368320245,1751117441284,-887.27162032,0.00019626,2]
[368320246,1751117441294,-18875.82641572,0.00019626,2]
[368320247,1751117441303,-966.72,0.00019725,2]
[368320248,1751117441313,-460.0,0.00019725,2]
[368320249,1751117441322,-989.84,0.00019725,2]
[368320250,1751117441331,-843.49,0.00019725,2]
[368320251,1751117441339,-555.0,0.00019725,2]
[368320252,1751117441349,-460.0,0.00019726,2]
[368320253,1751117441358,-3828.59,0.00019726,2]
[368320254,1751117441367,-1194.06,0.00019726,2]
[368320255,1751117441375,-460.0,0.00019726,2]
[368320256,1751117441384,-1412.01,0.00019726,2]
[368320257,1751117441393,-460.0,0.00019726,2]
[368320258,1751117441402,-460.0,0.00019726,2]
[368320259,1751117441412,-1872.7,0.00019726,2]
[368320260,1751117441421,-460.0,0.00019726,2]
[368320261,1751117441430,-460.0,0.00019726,2]
[368320262,1751117441439,-460.0,0.00019726,2]
[368320263,1751117441448,-460.0,0.00019726,2]
[368320264,1751117441457,-460.0,0.00019726,2]
[368320265,1751117441466,-1527.23,0.00019726,2]
[368320266,1751117441475,-3583.76,0.00019726,2]
[368320267,1751117441484,-460.0,0.00019726,2]
[368320268,1751117441493,-460.0,0.00019726,2]
[368320269,1751117441502,-460.0,0.00019726,2]
[368320270,1751117441512,-1503.18,0.00019726,2]
[368320271,1751117441521,-460.0,0.00019726,2]
[368320272,1751117441530,-460.0,0.00019726,2]
[368320273,1751117441539,-671.41,0.00019726,2]
[368320274,1751117441548,-460.0,0.00019726,2]
[368320275,1751117441557,-460.0,0.00019726,2]
[368320276,1751117441566,-460.0,0.00019726,2]
[368320277,1751117441575,-642.4,0.00019726,2]
[368320278,1751117441584,-503.24,0.00019726,2]
[368320279,1751117441593,-500.0,0.00019726,2]
[368320280,1751117441602,-460.0,0.00019726,2]
[368320281,1751117441611,-460.0,0.00019726,2]
[368320282,1751117441622,-460.0,0.00019726,2]
[368320283,1751117441633,-460.0,0.00019726,2]
[368320284,1751117441642,-460.0,0.00019726,2]
[368320285,1751117441651,-460.0,0.00019726,2]
[368320286,1751117441660,-460.0,0.00019726,2]
[368320287,1751117441670,-460.0,0.00019726,2]
[368320288,1751117441679,-460.0,0.00019726,2]
[368320289,1751117441687,-648.03,0.00019726,2]
[368320290,1751117441697,-460.0,0.00019726,2]
[368320291,1751117441706,-460.0,0.00019726,2]
[368320292,1751117441716,-460.0,0.00019726,2]
[368320293,1751117441725,-460.0,0.00019726,2]
[368320294,1751117441735,-460.0,0.00019726,2]
[368320295,1751117441744,-460.0,0.00019726,2]
[368320296,1751117441753,-1923.24,0.00019726,2]
[368320297,1751117441762,-460.0,0.00019726,2]
[368320298,1751117441771,-677.09,0.00019726,2]
[368320299,1751117441780,-231.56164127,0.00019726,2]
[368320300,1751117441790,-460.0,0.00019726,2]
[368320301,1751117441800,-533.62,0.00019726,2]
[368320302,1751117441809,-597.03,0.00019726,2]
[368320303,1751117441818,-460.0,0.00019726,2]
[368320304,1751117441827,-460.0,0.00019726,2]
[368320305,1751117441836,-460.0,0.00019726,2]
[368320306,1751117441845,-294.69851885,0.00019726,2]
[368320307,1751117441854,-460.0,0.00019726,2]
[368320308,1751117441863,-460.0,0.00019726,2]
[368320309,1751117441872,-2476.82,0.00019726,2]
[368320310,1751117441882,-460.0,0.00019726,2]
[368320311,1751117441891,-460.0,0.00019726,2]
[368320312,1751117441900,-2392.2,0.00019726,2]
[368320313,1751117441910,-868.82,0.00019726,2]
[368320314,1751117441919,-3068.15,0.00019726,2]
[368320315,1751117441929,-477.6,0.00019726,2]
[368320316,1751117441938,-460.0,0.00019726,2]
[368320317,1751117441948,-511.39,0.00019726,2]
[368320318,1751117441958,-460.0,0.00019726,2]
[368320319,1751117441967,-460.0,0.00019726,2]
[368320320,1751117441977,-460.0,0.00019726,2]
[368320321,1751117441986,-1580.86,0.00019726,2]
[368320322,1751117441996,-460.0,0.00019726,2]
[368320323,1751117442005,-590.19,0.00019726,2]
[368320324,1751117442014,-460.0,0.00019726,2]
[368320325,1751117442023,-502.36,0.00019726,2]
[368320326,1751117442033,-460.0,0.00019726,2]
[368320327,1751117442042,-1439.04,0.00019726,2]
[368320328,1751117442052,-535.49,0.00019726,2]
[368320329,1751117442062,-460.0,0.00019726,2]
[368320330,1751117442070,-460.0,0.00019726,2]
[368320331,1751117442080,-1512.09,0.00019726,2]
[368320332,1751117442089,-678.45,0.00019726,2]
[368320333,1751117442098,-208.41,0.00019726,2]
[368320334,1751117442107,-460.0,0.00019726,2]
[368320335,1751117442116,-460.0,0.00019726,2]
[368320336,1751117442126,-641.87,0.00019726,2]
[368320337,1751117442135,-588.6,0.00019726,2]
[368320338,1751117442144,-460.0,0.00019726,2]
[368320339,1751117442154,-460.0,0.00019726,2]
[368320340,1751117442163,-588.74,0.00019726,2]
[368320341,1751117442172,-460.0,0.00019726,2]
[368320342,1751117442182,-600.71,0.00019726,2]
[368320343,1751117442191,-460.0,0.00019726,2]
[368320344,1751117442202,-460.0,0.00019726,2]
[368320345,1751117442211,-460.0,0.00019726,2]
[368320346,1751117442220,-1706.49,0.00019726,2]
[368320347,1751117442230,-460.0,0.00019726,2]
[368320348,1751117442239,-460.0,0.00019726,2]
[368320349,1751117442248,-2092.7,0.00019726,2]
[368320350,1751117442258,-619.58,0.00019726,2]
[368320351,1751117442267,-492.27,0.00019726,2]
[368320352,1751117442276,-460.0,0.00019726,2]
[368320353,1751117442285,-460.0,0.00019726,2]
[368320354,1751117442294,-935.99,0.00019726,2]
[368320355,1751117442304,-500.0,0.00019865,2]
[368320356,1751117442313,-395.07622676,0.00019865,2]
[368320357,1751117442322,-500.0,0.00019882,2]
[368320358,1751117442332,-500.0,0.00019882,2]
[368320359,1751117442341,-500.0,0.00019882,2]
[368320360,1751117442350,-500.0,0.00019899,2]
[368320361,1751117442360,-500.0,0.00019899,2]
[368320362,1751117442371,-500.0,0.00019899,2]
[368320363,1751117442382,-500.0,0.00019899,2]
[368320364,1751117442392,-500.0,0.00019899,2]
[368320365,1751117442403,-500.0,0.00019899,2]
[368320366,1751117442412,-500.0,0.00019899,2]
[368320367,1751117442422,-500.0,0.00019899,2]
[368320368,1751117442432,-550.0,0.00019899,2]
[368320369,1751117442442,-500.0,0.00019899,2]
[368320370,1751117442452,-500.0,0.00019899,2]
[368320371,1751117442461,-500.0,0.00019899,2]
[368320372,1751117442470,-248.50389562,0.00019899,2]
[368320373,1751117442480,-500.0,0.00019899,2]
[368320374,1751117442489,-345.52572551,0.00019899,2]
[368320375,1751117442498,-500.0,0.00019899,2]
[368320376,1751117442507,-500.0,0.00019899,2]
[368320377,1751117442516,-500.0,0.00019899,2]
[368320378,1751117442525,-500.0,0.00019899,2]
[368320379,1751117442535,-500.0,0.00019899,2]
[368320380,1751117442544,-500.0,0.00019899,2]
[368320381,1751117442553,-500.0,0.00019899,2]
[368320383,1751117442562,-500.0,0.00019899,2]
[368320385,1751117442572,-500.0,0.00019899,2]
[368320387,1751117442581,-500.0,0.00019899,2]
[368320389,1751117442591,-500.0,0.00019899,2]
[368320390,1751117442600,-500.0,0.00019899,2]
[368320391,1751117442610,-500.0,0.00019899,2]
[368320392,1751117442619,-500.0,0.00019899,2]
[368320393,1751117442631,-500.0,0.00019899,2]
[368320394,1751117442641,-500.0,0.00019899,2]
[368320395,1751117442650,-500.0,0.00019899,2]
[368320396,1751117442659,-500.0,0.00019899,2]
[368320398,1751117442668,-500.0,0.00019899,2]
[368320400,1751117442678,-500.0,0.00019899,2]
[368320401,1751117442687,-500.0,0.00019899,2]
[368320402,1751117442696,-500.0,0.00019899,2]
[368320403,1751117442705,-500.0,0.00019899,2]
[368320405,1751117442716,-500.0,0.00019899,2]
[368320406,1751117442725,-500.0,0.00019899,2]
[368320407,1751117442735,-5180.64247699,0.000199,2]
[368320408,1751117442744,-847.18566335,0.00019948,2]
[368320409,1751117442753,-160.0,0.00019948,2]
[368320410,1751117442762,-837.06984471,0.00019948,2]
[368320412,1751117442772,-160.0,0.00019948,2]
[368320413,1751117442781,-160.0,0.00019948,2]
[368320414,1751117442790,-230.28494567,0.00019948,2]
[368320415,1751117442799,-12564.78152626,0.00019948,2]
[368320416,1751117442808,-214.95397287,0.00019948,2]